bitfinex/quotes_SOLUSD_20240716
["timestamp","ask_amount","ask_price","bid_price","bid_amount"]
[1721123916591,19.14,155.32,155.3,22.5363]
[1721123917496,19.14,155.32,155.31,6.4387]
[1721123917699,1.60973349,155.35,155.32,6.438]
[1721123918011,19.14,155.33,155.31,6.6086]
[1721123918194,19.14,155.32,155.31,6.6086]
[1721123918794,1.6095224,155.35,155.31,6.6086]
[1721123919110,19.14,155.34,155.31,1.45757661]
[1721123919289,19.14,155.34,155.33,6.4378]
[1721123919597,19.14,155.34,155.32,16.0951]
[1721123919778,19.14,155.33,155.31,6.6086]
[1721123919979,19.14,155.33,155.32,0.17]
[1721123920699,1.60944603,155.36,155.34,6.4374]
[1721123920888,19.14,155.35,155.34,6.4374]
[1721123921106,19.14,155.35,155.33,6.4377]
[1721123921887,19.14,155.36,155.34,6.6074]
[1721123922084,19.14,155.36,155.34,7.89471264]
[1721123922378,1.60934486,155.39,155.35,16.0922]
[1721123922681,19.14,155.38,155.37,6.4362]
[1721123923316,19.14,155.39,155.35,16.0922]
[1721123923477,19.14,155.39,155.36,0.34]
[1721123923683,19.14,155.39,155.37,6.4359]
[1721123925313,8.0431597,155.42,155.38,6.4357]
[1721123925483,19.14,155.39,155.38,6.4357]
[1721123925683,8.0431597,155.42,155.38,6.4357]
[1721123925891,4.49188191,155.41,155.38,6.4357]
[1721123926091,19.14,155.4,155.38,7.72273397]
[1721123926309,1.60883981,155.41,155.38,7.72273397]
[1721123926814,19.14,155.4,155.38,7.72273397]
[1721123926985,8.04269199,155.43,155.39,6.4354]
[1721123927181,4.49155962,155.42,155.4,6.4349]
[1721123927488,19.14,155.43,155.41,6.4345]
[1721123928111,1.6086908,155.45,155.41,6.4345]
[1721123928316,19.14,155.43,155.41,6.4345]
[1721123929009,19.14,155.44,155.41,6.4345]
[1721123929486,8.34033272,155.48,155.42,25.3514]
[1721123929689,19.14,155.48,155.43,0.17]
[1721123929905,19.14,155.47,155.45,16.082]
[1721123930222,20.74815158,155.46,155.43,6.6037]
[1721123930428,19.14,155.45,155.43,6.4337]
[1721123930926,6.4313,155.49,155.44,6.4333]
[1721123931088,19.14,155.46,155.44,6.4333]
[1721123931404,1.60818576,155.48,155.44,6.4333]
[1721123931609,19.14,155.47,155.44,6.4333]
[1721123931986,1.60818576,155.48,155.44,16.0829]
[1721123932216,1.60816425,155.5,155.46,6.4324]
[1721123932607,19.14,155.48,155.46,6.4324]
[1721123932809,19.14,155.47,155.45,6.4328]
[1721123933314,19.14,155.48,155.46,6.4323]
[1721123933904,1.60803175,155.49,155.46,6.4323]
[1721123934213,19.14,155.48,155.47,6.4319]
[1721123934416,1.60801553,155.51,155.46,16.0808]
[1721123934613,19.14,155.48,155.46,16.0808]
[1721123935297,19.14,155.47,155.46,22.5132]
[1721123936320,8.03893337,155.5,155.46,22.5132]
[1721123936625,19.14,155.47,155.46,22.5132]
[1721123936996,19.14,155.47,155.45,6.4329]
[1721123937197,19.14,155.46,155.45,6.4329]
[1721123937419,19.14,155.46,155.44,0.17]
[1721123937621,6.4313,155.49,155.44,6.603]
[1721123937933,19.14,155.45,155.43,16.0838]
[1721123938095,20.74843879,155.44,155.43,16.0838]
[1721123938419,19.14,155.44,155.43,16.0838]
[1721123938934,19.14,155.44,155.43,22.5175]
[1721123941230,19.14,155.45,155.44,6.433]
[1721123941436,1.60844261,155.47,155.45,6.4327]
[1721123941603,19.14,155.46,155.45,6.4327]
[1721123941810,8.33886045,155.51,155.46,6.4323]
[1721123942023,19.14,155.47,155.46,6.4323]
[1721123943844,6.4308,155.5,155.46,6.4323]
[1721123944147,19.14,155.47,155.46,6.4323]
[1721123944513,19.14,155.47,155.45,22.5146]
[1721123944715,19.14,155.46,155.45,22.5146]
[1721123944929,19.14,155.46,155.45,22.6846]
[1721123945528,19.14,155.46,155.42,16.0851]
[1721123945712,1.60834048,155.45,155.42,16.0851]
[1721123945905,19.14,155.44,155.43,0.17]
[1721123946144,19.14,155.45,155.43,6.6034]
[1721123946646,19.14,155.45,155.44,6.4333]
[1721123947212,20.74834064,155.46,155.44,6.4333]
[1721123947418,19.14,155.46,155.44,6.4333]
[1721123948251,6.4311,155.5,155.46,6.4324]
[1721123948556,19.14,155.47,155.45,6.4327]
[1721123949258,20.748144,155.46,155.44,16.0827]
[1721123949435,19.14,155.45,155.44,16.0827]
[1721123949820,19.14,155.45,155.44,22.5159]
[1721123951050,19.14,155.45,155.41,16.0858]
[1721123951253,19.14,155.42,155.41,16.0858]
[1721123951927,19.14,155.42,155.41,22.5203]
[1721123952752,1.60866706,155.44,155.43,6.4337]
[1721123953059,19.14,155.44,155.43,6.4337]
[1721123953953,1.60850057,155.49,155.45,6.4328]
[1721123954129,19.14,155.46,155.45,6.4328]
[1721123954451,22.6223,155.5,155.46,6.4322]
[1721123954653,19.14,155.47,155.46,6.4322]
[1721123954825,1.60814589,155.49,155.46,6.4322]
[1721123955026,19.14,155.48,155.47,6.432]
[1721123955834,19.14,155.49,155.47,6.432]
[1721123960055,19.14,155.49,155.46,6.4324]
[1721123960231,19.14,155.49,155.45,22.6848]
[1721123960436,19.14,155.49,155.46,0.17]
[1721123960731,19.14,155.48,155.46,6.6024]
[1721123960957,19.14,155.49,155.46,6.6024]
[1721123961653,19.14,155.48,155.46,6.6024]
[1721123961851,1.60801661,155.53,155.46,6.6024]
[1721123962162,19.14,155.49,155.47,6.432]
[1721123962479,19.14,155.5,155.47,6.432]
[1721123962640,8.03845446,155.51,155.47,6.432]
[1721123962840,19.14,155.5,155.47,6.432]
[1721123963974,8.03845446,155.51,155.47,6.432]
[1721123964279,19.14,155.5,155.47,6.432]
[1721123964569,19.14,155.49,155.47,6.432]
[1721123965372,6.4301,155.52,155.47,6.432]
[1721123965663,1.60795485,155.53,155.47,6.432]
[1721123965664,20.74785894,155.51,155.48,6.4315]
[1721123966080,19.14,155.5,155.48,6.4315]
[1721123967266,19.14,155.51,155.48,6.4315]
[1721123967470,19.14,155.5,155.48,6.4315]
[1721123968347,1.60782099,155.52,155.48,6.4315]
[1721123968546,19.14,155.5,155.48,6.4315]
[1721123968850,20.74790404,155.49,155.47,22.5117]
[1721123969063,20.74790404,155.49,155.48,6.4316]
[1721123971181,1.60790404,155.49,155.47,16.0797]
[1721123971481,19.14,155.49,155.47,16.0797]
[1721123972275,19.14,155.48,155.47,22.5118]
[1721123973088,1.60793752,155.51,155.49,6.4312]
[1721123973266,19.14,155.5,155.49,6.4312]
[1721123973592,1.60788118,155.52,155.49,6.4312]
[1721123973798,1.60790406,155.51,155.49,6.4312]
[1721123973969,19.14,155.5,155.49,6.4312]
[1721123974167,20.7478174,155.51,155.5,6.4308]
[1721123974580,1.6078174,155.51,155.5,6.4308]
[1721123974864,19.14,155.51,155.5,6.4308]
[1721123975359,19.14,155.51,155.49,22.5087]
[1721123975360,23.62764057,155.51,155.49,22.5087]
[1721123975596,20.7478183,155.5,155.49,22.5087]
[1721123975885,19.14,155.5,155.49,22.5087]
[1721123979186,1.60781814,155.52,155.49,22.5087]
[1721123979389,19.14,155.5,155.49,22.5087]
[1721123979575,20.74781664,155.51,155.49,22.5087]
[1721123980391,19.14,155.51,155.49,22.5087]
[1721123980690,19.14,155.5,155.46,16.2507]
[1721123980899,19.14,155.49,155.48,6.4316]
[1721123981207,19.14,155.49,155.46,22.5132]
[1721123981361,1.6081266,155.48,155.46,22.5132]
[1721123981557,19.14,155.47,155.46,22.5132]
[1721123983192,8.03902316,155.5,155.46,22.5132]
[1721123983377,1.60812316,155.5,155.47,6.432]
[1721123983564,1.60811679,155.49,155.47,6.432]
[1721123983760,19.14,155.48,155.47,6.432]
[1721123984075,19.14,155.49,155.47,6.432]
[1721123984469,1.60811875,155.5,155.48,6.4314]
[1721123984674,19.14,155.49,155.48,6.4314]
[1721123984877,19.14,155.49,155.47,6.4319]
[1721123985061,20.74804588,155.48,155.47,6.4319]
[1721123985266,19.14,155.48,155.47,6.4319]
[1721123985995,1.60802981,155.51,155.48,6.4316]
[1721123986306,19.14,155.49,155.48,6.4316]
[1721123987165,1.60802981,155.51,155.44,51.3065]
[1721123987361,1.60784143,155.52,155.49,6.4311]
[1721123987597,19.14,155.5,155.49,6.4311]
[1721123988306,19.14,155.5,155.48,22.5105]
[1721123988486,20.74792249,155.49,155.48,22.5105]
[1721123988673,19.14,155.49,155.48,22.5105]
[1721123990389,19.14,155.49,155.48,16.0789]
[1721123990977,19.14,155.49,155.48,22.5105]
[1721123992297,1.60791231,155.54,155.49,6.4312]
[1721123992473,19.14,155.52,155.51,16.0759]
[1721123992668,20.74770821,155.52,155.51,16.0759]
[1721123992869,19.14,155.52,155.5,6.4307]
[1721123993103,20.74778154,155.51,155.5,6.4307]
[1721123993307,19.14,155.51,155.49,6.4311]
[1721123993603,19.14,155.5,155.49,6.4311]
[1721123994273,19.14,155.51,155.49,6.4311]
[1721123995406,19.14,155.53,155.5,16.0766]
[1721123996402,19.14,155.52,155.5,22.5073]
[1721123998209,8.03696471,155.54,155.5,22.5073]
[1721123998379,19.14,155.52,155.5,22.5073]
[1721123999703,1.60766476,155.51,155.5,16.0766]
[1721124000079,1.60775045,155.53,155.5,16.0766]
[1721124000287,19.14,155.52,155.5,22.5073]
[1721124000808,20.74766459,155.51,155.47,22.5112]
[1721124000987,19.14,155.5,155.47,22.5112]
[1721124001178,19.14,155.48,155.47,16.0795]
[1721124001382,19.14,155.48,155.45,6.4328]
[1721124001610,1.60818636,155.47,155.45,6.4328]
[1721124002005,1.60818636,155.47,155.46,6.4325]
[1721124002183,1.60819487,155.51,155.46,6.4325]
[1721124002377,19.14,155.47,155.46,6.4325]
[1721124002691,19.14,155.47,155.41,38.2434]
[1721124003005,19.14,155.42,155.41,31.665]
[1721124003216,19.14,155.42,155.41,22.5203]
[1721124003590,1.60843337,155.46,155.43,6.4335]
[1721124003894,19.14,155.44,155.43,6.4335]
[1721124004111,1.60838899,155.47,155.43,6.4335]
[1721124004320,1.60838899,155.47,155.44,6.4332]
[1721124004485,19.14,155.45,155.44,6.4332]
[1721124004684,1.60838899,155.47,155.44,6.4332]
[1721124004885,19.14,155.45,155.44,6.4332]
[1721124005493,1.60838899,155.47,155.45,6.4326]
[1721124005697,19.14,155.46,155.45,6.4326]
[1721124006015,1.60823626,155.48,155.41,1.11486635]
[1721124006318,23.55722889,155.53,155.44,32.1657]
[1721124006319,1.60816906,155.51,155.44,32.1657]
[1721124006526,4.48768677,155.5,155.49,6.4312]
[1721124006688,23.62768677,155.5,155.49,6.4312]
[1721124007027,4.48768677,155.5,155.49,6.4312]
[1721124007182,23.62768677,155.5,155.49,6.4312]
[1721124007607,19.14,155.5,155.49,6.4312]
[1721124007820,19.14,155.5,155.48,6.4316]
[1721124007992,19.14,155.49,155.48,6.4316]
[1721124008912,19.14,155.49,155.47,22.5114]
[1721124009213,19.14,155.48,155.47,22.5114]
[1721124009511,19.14,155.48,155.45,0.17]
[1721124009716,19.14,155.46,155.45,6.4328]
[1721124010689,1.60816864,155.49,155.47,6.4317]
[1721124010889,1.60796874,155.51,155.47,6.4317]
[1721124011112,1.60796874,155.51,155.44,32.1667]
[1721124011286,19.14,155.47,155.46,6.4325]
[1721124011501,19.14,155.47,155.46,22.8538]
[1721124012191,1.60793046,155.51,155.49,6.4311]
[1721124012407,19.14,155.5,155.49,6.4311]
[1721124012690,19.14,155.5,155.48,22.5105]
[1721124012891,19.14,155.49,155.48,22.5105]
[1721124013099,1.60782455,155.51,155.48,22.5105]
[1721124013310,19.14,155.49,155.48,22.5105]
[1721124013830,19.14,155.49,155.48,22.6805]
[1721124015221,6.4292,155.54,155.48,16.2489]
[1721124015409,6.09452611,155.53,155.49,0.17]
[1721124015592,19.14,155.5,155.49,6.6012]
[1721124016418,19.14,155.5,155.48,22.5105]
[1721124016618,19.14,155.49,155.48,22.5105]
[1721124016801,8.33647873,155.56,155.48,16.4189]
[1721124017001,8.33647873,155.56,155.5,16.0765]
[1721124017002,19.14,155.52,155.5,16.0765]
[1721124017206,19.14,155.51,155.5,22.5072]
[1721124017604,1.60766409,155.54,155.5,16.0765]
[1721124017810,1.60745302,155.55,155.52,6.4297]
[1721124018013,19.14,155.53,155.52,6.4297]
[1721124019224,19.14,155.53,155.51,6.6003]
[1721124019525,19.14,155.52,155.51,7.88624283]
[1721124019728,19.14,155.52,155.51,6.6003]
[1721124020224,1.60747075,155.55,155.52,6.43]
[1721124020432,19.14,155.53,155.52,6.43]
[1721124021201,6.4284,155.56,155.54,16.0726]
[1721124021202,1.60742401,155.56,155.54,16.0726]
[1721124021422,19.14,155.55,155.54,22.5015]
[1721124023323,1.60726029,155.58,155.55,6.4286]
[1721124023516,1.60703332,155.59,155.56,6.4283]
[1721124023837,19.14,155.57,155.56,6.4283]
[1721124024329,19.14,155.57,155.56,6.5983]
[1721124024628,1.60703332,155.59,155.56,6.5983]
[1721124024803,19.14,155.57,155.56,6.5983]
[1721124025315,19.14,155.57,155.55,6.4286]
[1721124025516,20.74711056,155.56,155.53,6.4292]
[1721124025822,20.74711056,155.56,155.51,16.0753]
[1721124025823,8.03461056,155.59,155.54,6.4288]
[1721124026129,1.60711056,155.59,155.49,16.5813]
[1721124026436,19.14,155.54,155.53,22.5036]
[1721124026800,19.14,155.54,155.53,22.6736]
[1721124027009,19.14,155.54,155.53,22.8436]
[1721124028405,19.14,155.54,155.53,22.6736]
[1721124028835,19.14,155.54,155.53,22.8436]
[1721124029132,1.60711056,155.59,155.55,16.0715]
[1721124029423,1.60698928,155.6,155.57,16.0695]
[1721124029634,17.47278008,155.61,155.57,16.0695]
[1721124029825,19.14,155.58,155.57,22.4974]
[1721124030008,19.14,155.58,155.57,22.6674]
[1721124030633,19.14,155.58,155.56,6.4283]
[1721124030810,20.74712223,155.57,155.56,6.4283]
[1721124031006,19.14,155.57,155.56,6.4283]
[1721124031736,76.56,155.6,155.56,6.4283]
[1721124031906,76.56,155.6,155.57,6.4279]
[1721124032212,19.14,155.58,155.54,22.5014]
[1721124032419,19.14,155.55,155.54,22.5014]
[1721124032624,19.14,155.55,155.53,6.4294]
[1721124032838,1.60713507,155.57,155.54,6.4292]
[1721124033131,19.14,155.55,155.53,16.0735]
[1721124033330,19.14,155.54,155.53,16.0735]
[1721124033829,19.14,155.54,155.53,22.5031]
[1721124034032,19.14,155.54,155.53,22.6731]
[1721124034336,1.60738292,155.57,155.55,6.4287]
[1721124034522,20.747209,155.56,155.53,16.0735]
[1721124034720,19.14,155.54,155.53,16.0735]
[1721124035316,19.14,155.54,155.53,22.5029]
[1721124035522,19.14,155.54,155.53,22.5031]
[1721124036018,1.60738427,155.56,155.53,22.5031]
[1721124036222,1.60738295,155.55,155.53,22.5031]
[1721124036531,19.14,155.54,155.53,22.5031]
[1721124036831,19.14,155.54,155.53,16.0735]
[1721124037617,19.14,155.54,155.53,22.5031]
[1721124038018,1.60743863,155.55,155.54,6.4292]
[1721124038230,19.14,155.55,155.54,6.4292]
[1721124038829,1.60740961,155.58,155.55,6.4287]
[1721124039151,19.14,155.56,155.55,22.5002]
[1721124040024,15.8659,155.61,155.55,16.0716]
[1721124040221,78.1669243,155.6,155.58,6.4274]
[1721124040424,19.14,155.59,155.58,6.4274]
[1721124040608,19.14,155.59,155.57,16.0695]
[1721124040807,19.14,155.58,155.57,16.0695]
[1721124041516,19.14,155.58,155.57,22.4974]
[1721124041916,1.6069243,155.6,155.57,22.4974]
[1721124042131,19.14,155.58,155.57,22.4974]
[1721124042536,19.14,155.58,155.56,6.5982]
[1721124042739,20.74713226,155.57,155.54,16.0724]
[1721124042913,19.14,155.55,155.54,22.5016]
[1721124043111,19.14,155.55,155.54,22.6716]
[1721124043307,19.14,155.55,155.54,22.8416]
[1721124043741,19.14,155.55,155.54,22.6716]
[1721124043920,19.14,155.55,155.53,6.4295]
[1721124044120,20.74742582,155.54,155.53,6.4296]
[1721124044314,19.14,155.54,155.53,6.4296]
[1721124045916,19.14,155.54,155.52,6.4299]
[1721124046131,19.14,155.53,155.52,6.4299]
[1721124047236,1.60755114,155.59,155.52,48.6015]
[1721124047441,76.56,155.6,155.57,6.4278]
[1721124047641,19.14,155.58,155.57,22.4977]
[1721124048339,12.79335943,155.65,155.59,16.0675]
[1721124048540,95.7,155.6,155.59,22.4946]
[1721124048765,6.4251,155.64,155.6,6.4266]
[1721124048940,95.7,155.61,155.6,6.4266]
[1721124049335,6.4251,155.64,155.6,6.4266]
[1721124049534,19.14,155.61,155.6,6.4266]
[1721124049739,19.21805943,155.65,155.61,6.4262]
[1721124049942,19.14,155.62,155.61,6.4262]
[1721124050245,38.15,155.63,155.61,6.4262]
[1721124050450,1.60671074,155.62,155.61,6.4262]
[1721124053459,39.75669338,155.65,155.61,6.4262]
[1721124053648,1.60669346,155.64,155.61,6.4262]
[1721124054631,1.60670048,155.65,155.62,16.0644]
[1721124054855,1.60659584,155.64,155.63,6.4254]
[1721124055047,1.60659584,155.64,155.62,22.4902]
[1721124055553,1.60659584,155.64,155.63,6.4254]
[1721124055760,1.60651855,155.65,155.63,6.4254]
[1721124055944,1.60651541,155.64,155.63,6.4254]
[1721124056952,1.60651441,155.65,155.63,6.4254]
[1721124057139,1.60651633,155.64,155.63,6.4254]
[1721124057548,1.60651633,155.64,155.62,22.4901]
[1721124058261,1.60654736,155.65,155.62,22.4901]
[1721124058447,1.60654733,155.64,155.62,22.4901]
[1721124059366,1.6065473,155.63,155.62,22.4901]
[1721124059561,1.60654727,155.65,155.62,22.4901]
[1721124059861,1.60654727,155.64,155.62,22.4901]
[1721124060662,1.60654726,155.65,155.62,22.4901]
[1721124060865,1.60654726,155.64,155.62,22.4901]
[1721124061162,1.60654726,155.64,155.63,6.4254]
[1721124061365,1.60648875,155.66,155.63,6.4254]
[1721124062170,1.60648875,155.66,155.64,6.4249]
[1721124063669,1.60648875,155.66,155.63,6.4253]
[1721124064443,1.60648875,155.66,155.64,6.4249]
[1721124064966,1.60648875,155.66,155.65,6.4246]
[1721124065873,1.60648875,155.66,155.64,6.4249]
[1721124066563,2.45035275,155.67,155.66,6.4242]
[1721124067544,0.8439736,155.67,155.66,6.4242]
[1721124067745,2.45014501,155.67,155.66,6.4242]
[1721124068679,0.8439736,155.67,155.66,6.4242]
[1721124068850,2.4501175,155.67,155.66,6.4242]
[1721124069170,0.8439736,155.67,155.66,6.4242]
[1721124070766,0.8439736,155.67,155.66,6.5942]
[1721124071477,0.8439736,155.67,155.66,6.4242]
[1721124071643,2.44995235,155.67,155.66,6.4242]
[1721124071850,21.49995235,155.67,155.66,6.4242]
[1721124072049,0.8439736,155.67,155.66,6.4242]
[1721124073649,21.50004853,155.67,155.65,6.4246]
[1721124073847,21.50004853,155.67,155.56,19.34]
[1721124073848,19.05,155.66,155.59,15.5539]
[1721124074074,19.05,155.6,155.59,6.4271]
[1721124074441,1.60683181,155.63,155.58,16.0684]
[1721124074647,1.60683181,155.63,155.6,6.4266]
[1721124075073,1.60683181,155.63,155.61,6.4262]
[1721124075279,19.05,155.62,155.61,6.4262]
[1721124075473,1.6066545,155.65,155.64,6.425]
[1721124075661,19.05,155.65,155.63,16.0634]
[1721124075972,19.05,155.65,155.64,6.425]
[1721124076777,19.05,155.65,155.64,6.595]
[1721124076973,19.05,155.65,155.64,6.425]
[1721124078064,19.05,155.65,155.63,22.4888]
[1721124078267,20.65627996,155.64,155.63,22.4888]
[1721124078482,20.65627996,155.64,155.63,16.0634]
[1721124078652,20.65627996,155.64,155.6,22.4926]
[1721124078853,19.05,155.61,155.6,16.0662]
[1721124079089,19.05,155.61,155.57,16.0696]
[1721124079384,19.05,155.58,155.51,22.2796]
[1721124079572,1.60720675,155.57,155.55,6.4285]
[1721124079787,25.477,155.6,155.55,6.4285]
[1721124079788,19.05,155.56,155.55,6.4285]
[1721124079970,19.05,155.56,155.54,22.5017]
[1721124080159,20.65730943,155.55,155.54,16.0726]
[1721124080362,76.2,155.6,155.55,6.4286]
[1721124080363,1.60743422,155.57,155.55,6.4286]
[1721124080680,1.60743422,155.57,155.56,6.4283]
[1721124082386,38.17,155.61,155.56,16.0702]
[1721124082690,1.60697899,155.6,155.56,6.4283]
[1721124082861,1.60697899,155.6,155.57,6.4278]
[1721124083281,1.60697899,155.6,155.56,6.4282]
[1721124083979,1.60697899,155.6,155.57,6.4278]
[1721124084760,1.60697899,155.6,155.57,22.4969]
[1721124085962,1.60697899,155.6,155.57,16.0691]
[1721124086685,1.60697899,155.6,155.57,22.4969]
[1721124087678,1.60697899,155.6,155.52,32.1493]
[1721124087892,1.60697899,155.6,155.53,0.34]
[1721124088061,1.60697899,155.6,155.56,16.0704]
[1721124089476,1.60697899,155.6,155.58,6.4272]
[1721124090169,1.60697899,155.6,155.57,6.4279]
[1721124090783,1.60697899,155.6,155.58,16.068]
[1721124091093,1.60697899,155.6,155.58,22.4954]
[1721124091791,1.60697899,155.6,155.59,6.4271]
[1721124092201,1.60684992,155.63,155.6,6.4266]
[1721124092495,1.60684992,155.63,155.58,16.068]
[1721124092667,1.60684992,155.63,155.61,6.4262]
[1721124093473,1.60684992,155.63,155.57,1.45532468]
[1721124093474,1.60663665,155.64,155.62,6.4258]
[1721124093777,1.60663665,155.64,155.62,16.0641]
[1721124093972,8.87429023,155.67,155.63,6.4254]
[1721124094700,8.87429023,155.67,155.62,22.4898]
[1721124094996,8.87429023,155.67,155.62,16.0641]
[1721124094997,6.4243,155.66,155.62,16.0641]
[1721124095290,8.03125035,155.65,155.6,6.4266]
[1721124095496,1.60665056,155.64,155.6,6.4266]
[1721124095669,1.60665056,155.64,155.61,6.4262]
[1721124095994,1.60665056,155.64,155.6,6.4267]
[1721124096195,8.03175056,155.64,155.6,6.4267]
[1721124096369,1.60665117,155.63,155.6,6.4267]
[1721124096574,1.60665117,155.62,155.6,6.4267]
[1721124096783,1.6066487,155.64,155.6,6.4267]
[1721124097383,8.0317487,155.64,155.59,22.4944]
[1721124097766,38.17,155.62,155.58,6.4274]
[1721124097984,1.60695306,155.61,155.59,6.427]
[1721124098200,1.60695306,155.61,155.6,6.4267]
[1721124098201,1.60685155,155.61,155.6,6.4267]
[1721124098375,38.17,155.65,155.61,6.426]
[1721124098376,1.60671544,155.64,155.61,6.426]
[1721124098576,1.60671544,155.64,155.62,6.4258]
[1721124100479,19.06,155.63,155.62,6.4258]
[1721124100791,19.06,155.63,155.6,22.4925]
[1721124101090,19.06,155.61,155.6,22.4925]
[1721124101490,19.06,155.61,155.57,22.497]
[1721124101696,1.60684441,155.6,155.58,6.4275]
[1721124101894,1.60684441,155.6,155.57,16.0694]
[1721124101895,1.60684441,155.62,155.59,6.4271]
[1721124102385,1.60684441,155.62,155.58,6.4274]
[1721124102894,1.60684441,155.62,155.59,6.4269]
[1721124103602,1.60684441,155.62,155.57,16.0694]
[1721124103900,1.60684441,155.62,155.58,6.4271]
[1721124104098,1.60684441,155.62,155.57,16.0694]
[1721124104099,1.60684441,155.62,155.6,6.4267]
[1721124104481,1.60684441,155.62,155.59,22.4945]
[1721124106993,1.60684441,155.62,155.6,6.4266]
[1721124107398,38.14,155.64,155.61,6.4263]
[1721124107705,1.60675703,155.63,155.6,6.4266]
[1721124108516,1.60675703,155.63,155.61,6.4261]
[1721124109078,1.60675703,155.63,155.6,6.4266]
[1721124109280,1.60675703,155.63,155.61,6.4262]
[1721124109483,1.60675703,155.63,155.62,6.4259]
[1721124109687,1.60675703,155.63,155.61,16.0652]
[1721124109688,1.60675703,155.63,155.61,22.4914]
[1721124110187,1.60675703,155.63,155.62,6.4259]
[1721124110393,1.60655682,155.66,155.62,6.4259]
[1721124112081,8.03095682,155.66,155.61,22.4913]
[1721124112610,8.03095682,155.66,155.62,6.4258]
[1721124113105,8.03095682,155.66,155.61,22.4913]
[1721124113830,6.4246,155.65,155.61,22.4913]
[1721124114002,1.60658445,155.64,155.61,22.4913]
[1721124115401,1.60658358,155.63,155.61,22.4913]
[1721124115602,1.6065834,155.65,155.61,22.4913]
[1721124115803,1.6065834,155.64,155.61,22.4913]
[1721124116602,8.0316834,155.64,155.6,6.4266]
[1721124117618,6.4257,155.63,155.58,22.4952]
[1721124117797,1.60686901,155.62,155.58,22.4953]
[1721124118911,8.03286901,155.62,155.58,22.4953]
[1721124119105,1.60686901,155.62,155.58,22.4953]
[1721124119908,1.60686901,155.62,155.59,6.427]
[1721124120128,1.60686901,155.62,155.58,16.0681]
[1721124120309,1.60686901,155.62,155.6,16.0665]
[1721124120496,1.60680433,155.61,155.6,16.0665]
[1721124120695,1.60680442,155.63,155.6,16.0665]
[1721124121020,38.14,155.61,155.52,32.1495]
[1721124121333,1.60720635,155.6,155.52,32.1495]
[1721124121825,1.60720635,155.6,155.57,6.4279]
[1721124122212,1.60720635,155.6,155.58,6.4275]
[1721124122512,20.68698212,155.59,155.58,6.4275]
[1721124123422,19.08,155.59,155.58,6.4275]
[1721124125719,1.60696765,155.62,155.58,6.4275]
[1721124125918,19.08,155.59,155.58,6.4275]
[1721124126620,20.6869044,155.62,155.59,16.0675]
[1721124126815,19.08,155.62,155.61,6.426]
[1721124127012,19.08,155.63,155.61,6.426]
[1721124127330,20.68662215,155.62,155.61,6.426]
[1721124127631,20.68662215,155.62,155.6,6.4265]
[1721124127823,19.08,155.61,155.6,6.4265]
[1721124128217,0.8439736,155.67,155.58,1.45532942]
[1721124128218,1.60667824,155.64,155.61,16.0653]
[1721124128616,19.08,155.62,155.61,22.4916]
[1721124129211,19.08,155.62,155.58,0.17]
[1721124129521,6.4255,155.63,155.59,6.427]
[1721124129728,19.08,155.6,155.58,22.4957]
[1721124129940,20.68689023,155.59,155.58,16.0682]
[1721124130147,19.08,155.59,155.58,16.0682]
[1721124130737,19.08,155.59,155.55,16.0712]
[1721124130947,1.60719465,155.58,155.55,16.0712]
[1721124131110,19.08,155.56,155.55,22.5]